fUSD/lending_fUSD_20260529
["ID","MTS","AMOUNT","RATE_DAILY","PERIOD"]
[423266551,1780003844000,-1373.1,0.00024999,2]
[423266554,1780003844000,-500.0,0.00025,4]
[423266553,1780003844000,-564369.35877163,0.00025,2]
[423266555,1780003844000,-243.07564746,0.00025,2]
[423266556,1780003844000,-481.25213369,0.00025,2]
[423266559,1780003844000,-779.83477829,0.00025,2]
[423266557,1780003844000,-256.0,0.00025,2]
[423266558,1780003844000,-1320.0,0.00025,2]
[423266508,1780003844000,-277.0,0.00024,2]
[423266552,1780003844000,-627.45666452,0.00025,5]
[423266534,1780003844000,-171.94388975,0.0002465,2]
[423266548,1780003844000,-500.0,0.00024999,2]
[423266532,1780003844000,-1510.54,0.00024325,2]
[423266533,1780003844000,-200.0,0.00024391,2]
[423266510,1780003844000,-150.0,0.00024004,2]
[423266514,1780003844000,-1777.37,0.00024137,15]
[423266516,1780003844000,-599.60298507,0.00024191,2]
[423266513,1780003844000,-500.0,0.00024136,2]
[423266515,1780003844000,-11679.0,0.00024174,2]
[423266518,1780003844000,-200.0,0.00024192,2]
[423266520,1780003844000,-200.0,0.00024192,2]
[423266521,1780003844000,-251.11897888,0.00024192,2]
[423266523,1780003844000,-2494.55939288,0.00024192,2]
[423266519,1780003844000,-209.40437684,0.00024192,2]
[423266517,1780003844000,-747.80937859,0.00024191,2]
[423266536,1780003844000,-397.65,0.00024658,2]
[423266522,1780003844000,-1712.93078311,0.00024192,2]
[423266526,1780003844000,-1510.54,0.00024323,2]
[423266525,1780003844000,-1510.54,0.00024321,2]
[423266527,1780003844000,-1510.54,0.00024323,2]
[423266529,1780003844000,-3403.1,0.00024324,2]
[423266528,1780003844000,-1510.54,0.00024323,2]
[423266530,1780003844000,-1510.5,0.00024325,2]
[423266531,1780003844000,-1510.54,0.00024325,2]
[423266535,1780003844000,-151.65,0.00024658,2]
[423266524,1780003844000,-1510.54,0.00024321,2]
[423266598,1780003845000,-173.95,0.00025786,2]
[423266597,1780003845000,-3929.48,0.00025786,2]
[423266596,1780003845000,-2021.74,0.00025786,2]
[423266595,1780003845000,-206.84,0.00025774,2]
[423266594,1780003845000,-10618.88800289,0.000256,2]
[423266587,1780003845000,-1842.0326633,0.00025288,2]
[423266593,1780003845000,-152.0,0.00025369,3]
[423266591,1780003845000,-7864.35,0.00025347,7]
[423266590,1780003845000,-671.36118124,0.00025334,2]
[423266601,1780003845000,-200.0,0.00025836,2]
[423266592,1780003845000,-24119.0,0.00025354,2]
[423266599,1780003845000,-200.0,0.00025836,2]
[423266613,1780003845000,-550.0,0.00026,2]
[423266602,1780003845000,-1910.18787185,0.00025836,2]
[423266603,1780003845000,-2781.82699784,0.00025836,2]
[423266604,1780003845000,-161.11,0.00025864,2]
[423266605,1780003845000,-200.0,0.00025916,2]
[423266606,1780003845000,-200.0,0.00025916,2]
[423266610,1780003845000,-540.89496756,0.00025993,2]
[423266608,1780003845000,-200.0,0.00025975,2]
[423266611,1780003845000,-500.0,0.00026,4]
[423266607,1780003845000,-228.12761804,0.00025944,2]
[423266609,1780003845000,-609.99350778,0.0002599,2]
[423266589,1780003845000,-200.0,0.00025321,2]
[423266600,1780003845000,-233.5188934,0.00025836,2]
[423266588,1780003845000,-2682.57183977,0.00025288,2]
[423266561,1780003845000,-243.0,0.00025,2]
[423266586,1780003845000,-200.0,0.00025288,2]
[423266560,1780003845000,-297.05429665,0.00025,2]
[423266562,1780003845000,-974.20493935,0.00025,2]
[423266614,1780003845000,-500.0,0.00026,2]
[423266563,1780003845000,-296.0,0.00025,2]
[423266565,1780003845000,-1001.54553,0.00025,2]
[423266564,1780003845000,-282.37189547,0.00025,2]
[423266570,1780003845000,-202.21,0.00025,2]
[423266566,1780003845000,-290.78411041,0.00025,2]
[423266569,1780003845000,-202.21,0.00025,2]
[423266567,1780003845000,-394973.10141843,0.00025,2]
[423266568,1780003845000,-200.0,0.00025,10]
[423266572,1780003845000,-202.21,0.00025,2]
[423266571,1780003845000,-202.21,0.00025,2]
[423266573,1780003845000,-202.21,0.00025,2]
[423266575,1780003845000,-202.21,0.00025,2]
[423266574,1780003845000,-202.21,0.00025,2]
[423266576,1780003845000,-202.21,0.00025,2]
[423266577,1780003845000,-202.21,0.00025,2]
[423266579,1780003845000,-300.0,0.000251,10]
[423266580,1780003845000,-200.0,0.00025183,2]
[423266578,1780003845000,-202.21,0.00025,2]
[423266581,1780003845000,-5550.0,0.000252,2]
[423266583,1780003845000,-16699.71260629,0.00025208,2]
[423266582,1780003845000,-267.19985626,0.00025208,2]
[423266584,1780003845000,-200.0,0.00025288,2]
[423266585,1780003845000,-225.18697532,0.00025288,2]
[423266615,1780003845000,-219.76345652,0.00026,2]
[423266612,1780003845000,-4591.64384435,0.00026,2]
[423266617,1780003845000,-1373.1,0.00026099,2]
[423266646,1780003845000,-2000.0,0.00026667,7]
[423266648,1780003845000,-200.0,0.00026701,2]
[423266651,1780003845000,-5111.0,0.0002678,2]
[423266649,1780003845000,-957.05,0.0002674,15]
[423266650,1780003845000,-200.0,0.00026767,2]
[423266652,1780003845000,-621.78829552,0.0002693,2]
[423266653,1780003845000,-775.4783256,0.0002693,2]
[423266654,1780003845000,-200.0,0.00026932,2]
[423266656,1780003845000,-2054.15682156,0.00026932,2]
[423266655,1780003845000,-251.11897888,0.00026932,2]
[423266657,1780003845000,-2991.49051684,0.00026932,2]
[423266658,1780003845000,-500.0,0.00026948,2]
[423266663,1780003845000,-1051.32860305,0.00027,2]
[423266661,1780003845000,-2000.0,0.00027,2]
[423266662,1780003845000,-250.0,0.00027,2]
[423266659,1780003845000,-200.0,0.00026968,2]
[423266660,1780003845000,-500.0,0.00026999,2]
[423266664,1780003845000,-530.0,0.00027,2]
[423266666,1780003845000,-2581.153126,0.0002701,2]
[423266665,1780003845000,-150.0,0.00027004,2]
[423266667,1780003845000,-712.85,0.000271,7]
[423266669,1780003845000,-166.75845716,0.00027279,2]
[423266671,1780003845000,-4178.98740951,0.0002739,2]
[423266668,1780003845000,-7864.35,0.00027128,7]
[423266618,1780003845000,-18242.0,0.000261,2]
[423266647,1780003845000,-1716.0,0.000267,7]
[423266644,1780003845000,-619.54712218,0.00026605,2]
[423266670,1780003845000,-180.84321921,0.000273,30]
[423266645,1780003845000,-3336.44,0.00026666,14]
[423266643,1780003845000,-152.0,0.00026568,4]
[423266619,1780003845000,-1825.72401658,0.000261,2]
[423266620,1780003845000,-200.0,0.00026175,2]
[423266624,1780003845000,-1225.0,0.00026235,2]
[423266621,1780003845000,-200.0,0.00026175,2]
[423266623,1780003845000,-1272.0,0.00026235,2]
[423266622,1780003845000,-525.0,0.00026235,2]
[423266625,1780003845000,-3549.0,0.00026235,2]
[423266626,1780003845000,-928.0,0.00026235,2]
[423266627,1780003845000,-166.75845716,0.00026279,2]
[423266628,1780003845000,-3403.1,0.00026296,2]
[423266629,1780003845000,-200.0,0.00026384,2]
[423266616,1780003845000,-179.14,0.00026027,7]
[423266633,1780003845000,-2884.75459676,0.00026384,2]
[423266630,1780003845000,-242.15909246,0.00026384,2]
[423266642,1780003845000,-295.99705432,0.00026474,2]
[423266641,1780003845000,-200.0,0.00026437,2]
[423266640,1780003845000,-450.0,0.00026411,2]
[423266638,1780003845000,-27914.91476775,0.000264,2]
[423266637,1780003845000,-823.472598,0.00026384,2]
[423266635,1780003845000,-823.472598,0.00026384,2]
[423266639,1780003845000,-437.4,0.00026411,2]
[423266631,1780003845000,-204.73485834,0.00026384,2]
[423266632,1780003845000,-1980.8648231,0.00026384,2]
[423266634,1780003845000,-823.472598,0.00026384,2]
[423266636,1780003845000,-823.472598,0.00026384,2]
[423266708,1780003846000,-2887.25,0.00027588,30]
[423266710,1780003846000,-1654.31,0.00027597,7]
[423266709,1780003846000,-2886.87,0.00027591,30]
[423266704,1780003846000,-1654.31,0.00027579,30]
[423266705,1780003846000,-1654.27,0.00027582,30]
[423266702,1780003846000,-150.0,0.00027521,2]
[423266703,1780003846000,-200.0,0.00027559,2]
[423266706,1780003846000,-888.98,0.00027585,30]
[423266711,1780003846000,-1654.27,0.000276,7]
[423266700,1780003846000,-204.44143807,0.000275,2]
[423266707,1780003846000,-889.04,0.00027588,30]
[423266712,1780003846000,-888.98,0.00027603,7]
[423266718,1780003846000,-2886.87,0.00027608,7]
[423266713,1780003846000,-153.78,0.00027604,2]
[423266714,1780003846000,-413.03141479,0.00027605,7]
[423266717,1780003846000,-152.09,0.00027607,2]
[423266716,1780003846000,-2887.25,0.00027605,7]
[423266720,1780003846000,-152.09,0.00027637,7]
[423266719,1780003846000,-153.78,0.00027634,7]
[423266721,1780003846000,-153.78,0.00027665,30]
[423266722,1780003846000,-152.09,0.00027668,30]
[423266723,1780003846000,-211.0,0.00027683,30]
[423266728,1780003846000,-152.09,0.0002773,7]
[423266701,1780003846000,-1716.0,0.000275,7]
[423266724,1780003846000,-153.78,0.00027696,2]
[423266715,1780003846000,-889.04,0.00027605,7]
[423266699,1780003846000,-260.4103811,0.0002748,2]
[423266686,1780003846000,-31175.6,0.00027397,10]
[423266693,1780003846000,-4827.47,0.000274,2]
[423266726,1780003846000,-152.09,0.00027699,2]
[423266672,1780003846000,-8255.73588221,0.0002739,2]
[423266673,1780003846000,-150.0,0.00027397,30]
[423266674,1780003846000,-220.0,0.00027397,2]
[423266676,1780003846000,-1500.0,0.00027397,2]
[423266675,1780003846000,-281.08819583,0.00027397,2]
[423266677,1780003846000,-1003.83,0.00027397,2]
[423266680,1780003846000,-1000.0,0.00027397,20]
[423266679,1780003846000,-527.87,0.00027397,2]
[423266681,1780003846000,-300.0,0.00027397,2]
[423266678,1780003846000,-428.82070581,0.00027397,2]
[423266682,1780003846000,-397.65,0.00027397,2]
[423266683,1780003846000,-1020.65,0.00027397,2]
[423266684,1780003846000,-1467.8,0.00027397,2]
[423266685,1780003846000,-37410.73,0.00027397,10]
[423266687,1780003846000,-619.54712218,0.00027397,2]
[423266688,1780003846000,-295.99705432,0.00027397,2]
[423266691,1780003846000,-855.51,0.000274,14]
[423266692,1780003846000,-4827.47,0.000274,2]
[423266696,1780003846000,-4827.47,0.000274,2]
[423266697,1780003846000,-197.33136955,0.00027474,7]
[423266689,1780003846000,-618.15,0.000274,7]
[423266690,1780003846000,-1747.87,0.000274,7]
[423266695,1780003846000,-4827.47,0.000274,2]
[423266694,1780003846000,-4827.47,0.000274,2]
[423266698,1780003846000,-200.0,0.0002748,2]
[423266727,1780003846000,-153.78,0.00027727,7]
[423266725,1780003846000,-217.69,0.00027699,2]
[423266729,1780003846000,-1654.31,0.00027754,2]
[423266760,1780003846000,-4656.0,0.00027918,2]
[423266761,1780003846000,-2886.87,0.00027919,30]
[423266763,1780003846000,-152.09,0.00027945,30]
[423266764,1780003846000,-153.78,0.00027975,2]
[423266762,1780003846000,-153.78,0.00027944,30]
[423266765,1780003846000,-152.09,0.00027976,2]
[423266766,1780003846000,-250.0,0.00028,2]
[423266768,1780003846000,-51107.10709528,0.00028,2]
[423266767,1780003846000,-600.0,0.00028,2]
[423266769,1780003846000,-152.09,0.00028006,7]
[423266770,1780003846000,-153.78,0.00028006,7]
[423266771,1780003846000,-270.0455652,0.00028028,2]
[423266777,1780003846000,-1654.27,0.0002807,7]
[423266772,1780003846000,-152.09,0.00028037,30]
[423266773,1780003846000,-153.78,0.00028037,30]
[423266775,1780003846000,-153.78,0.00028068,2]
[423266776,1780003846000,-1654.31,0.00028068,7]
[423266774,1780003846000,-152.09,0.00028068,2]
[423266778,1780003846000,-888.98,0.00028071,7]
[423266780,1780003846000,-2887.25,0.00028073,7]
[423266779,1780003846000,-889.04,0.00028073,7]
[423266782,1780003846000,-150.0,0.00028082,30]
[423266781,1780003846000,-2886.87,0.00028075,7]
[423266783,1780003846000,-152.09,0.00028099,7]
[423266785,1780003846000,-855.51,0.000281,14]
[423266757,1780003846000,-2887.25,0.00027917,30]
[423266756,1780003846000,-889.04,0.00027917,30]
[423266784,1780003846000,-153.78,0.00028099,7]
[423266758,1780003846000,-450.0,0.00027918,2]
[423266730,1780003846000,-1654.27,0.00027757,2]
[423266731,1780003846000,-153.78,0.00027758,30]
[423266733,1780003846000,-152.09,0.0002776,30]
[423266732,1780003846000,-888.98,0.00027759,2]
[423266734,1780003846000,-889.04,0.00027761,2]
[423266735,1780003846000,-2887.25,0.00027761,2]
[423266738,1780003846000,-153.78,0.00027789,2]
[423266759,1780003846000,-1393.0,0.00027918,2]
[423266736,1780003846000,-2886.87,0.00027764,2]
[423266739,1780003846000,-152.09,0.00027791,2]
[423266741,1780003846000,-1373.1,0.00027813,2]
[423266740,1780003846000,-500.0,0.00027794,10]
[423266743,1780003846000,-152.09,0.00027822,7]
[423266737,1780003846000,-152.0,0.00027767,5]
[423266744,1780003846000,-5444.0,0.00027841,2]
[423266754,1780003846000,-152.09,0.00027914,7]
[423266742,1780003846000,-153.78,0.0002782,7]
[423266755,1780003846000,-888.98,0.00027915,30]
[423266753,1780003846000,-153.78,0.00027913,7]
[423266752,1780003846000,-1654.27,0.00027913,30]
[423266749,1780003846000,-153.78,0.00027882,2]
[423266751,1780003846000,-1654.31,0.00027911,30]
[423266750,1780003846000,-152.09,0.00027883,2]
[423266746,1780003846000,-152.09,0.00027853,30]
[423266747,1780003846000,-1154.91,0.00027865,7]
[423266745,1780003846000,-153.78,0.00027851,30]
[423266748,1780003846000,-335.70212016,0.00027873,2]
[423266825,1780003847000,-158.09050903,0.00028517,7]
[423266821,1780003847000,-385.23299643,0.00028499,7]
[423266823,1780003847000,-466.80495749,0.00028501,2]
[423266819,1780003847000,-191.65589091,0.00028497,7]
[423266816,1780003847000,-154.55523659,0.00028497,7]
[423266820,1780003847000,-195.01107189,0.00028497,7]
[423266826,1780003847000,-236.6877331,0.00028517,7]
[423266828,1780003847000,-182.29737478,0.00028517,7]
[423266818,1780003847000,-165.60342518,0.00028497,7]
[423266827,1780003847000,-160.03180424,0.00028517,7]
[423266824,1780003847000,-192.62153853,0.00028503,2]
[423266838,1780003847000,-176.66,0.00028767,30]
[423266822,1780003847000,-200.0,0.000285,2]
[423266829,1780003847000,-176.83005715,0.00028517,7]
[423266841,1780003847000,-200.0,0.00028817,2]
[423266840,1780003847000,-671.36118124,0.00028812,2]
[423266839,1780003847000,-712.85,0.000288,7]
[423266830,1780003847000,-302.93775304,0.00028576,2]
[423266835,1780003847000,-413.03141479,0.00028605,7]
[423266831,1780003847000,-152.0,0.00028582,30]
[423266837,1780003847000,-618.15,0.000287,7]
[423266833,1780003847000,-163.35342995,0.00028587,7]
[423266832,1780003847000,-152.0,0.00028582,30]
[423266815,1780003847000,-205.69677291,0.00028497,7]
[423266817,1780003847000,-164.57488345,0.00028497,7]
[423266813,1780003847000,-185.37433573,0.00028497,7]
[423266799,1780003847000,-236.01158654,0.00028496,7]
[423266806,1780003847000,-166.79785756,0.00028497,7]
[423266836,1780003847000,-152.0,0.00028616,30]
[423266789,1780003847000,-222.34460954,0.00028279,7]
[423266786,1780003847000,-152.11,0.0002813,30]
[423266788,1780003847000,-3403.1,0.00028267,2]
[423266787,1780003847000,-153.9,0.0002813,30]
[423266791,1780003847000,-1747.87,0.000284,7]
[423266790,1780003847000,-200.0,0.0002835,2]
[423266792,1780003847000,-5631.98701052,0.0002841,2]
[423266793,1780003847000,-337.66,0.00028412,120]
[423266796,1780003847000,-162.77088162,0.00028496,7]
[423266794,1780003847000,-197.33136955,0.00028474,7]
[423266795,1780003847000,-235.37691859,0.00028496,7]
[423266800,1780003847000,-207.54038023,0.00028496,7]
[423266797,1780003847000,-176.46268258,0.00028496,7]
[423266798,1780003847000,-170.5158466,0.00028496,7]
[423266801,1780003847000,-163.32885338,0.00028496,7]
[423266803,1780003847000,-162.62779764,0.00028496,7]
[423266802,1780003847000,-188.46321188,0.00028496,7]
[423266804,1780003847000,-184.49301537,0.00028496,7]
[423266809,1780003847000,-177.2857747,0.00028497,7]
[423266812,1780003847000,-153.32790264,0.00028497,7]
[423266807,1780003847000,-199.8345924,0.00028497,7]
[423266805,1780003847000,-170.11474998,0.00028496,7]
[423266811,1780003847000,-155.00222481,0.00028497,7]
[423266810,1780003847000,-197.27923985,0.00028497,7]
[423266808,1780003847000,-197.13506717,0.00028497,7]
[423266834,1780003847000,-169.74271699,0.00028587,7]
[423266845,1780003847000,-3133.0,0.000289,2]
[423266844,1780003847000,-855.51,0.000289,14]
[423266874,1780003847000,-10000.0,0.00029,2]
[423266878,1780003847000,-241.54,0.00029,2]
[423266875,1780003847000,-255.0,0.00029,2]
[423266876,1780003847000,-470.58,0.00029,2]
[423266877,1780003847000,-317.89,0.00029,2]
[423266879,1780003847000,-200.0,0.00029,2]
[423266880,1780003847000,-203.36,0.00029,2]
[423266881,1780003847000,-10000.0,0.00029,2]
[423266882,1780003847000,-336.0,0.00029,2]
[423266885,1780003847000,-150.0,0.00029,2]
[423266884,1780003847000,-174.73,0.00029,2]
[423266886,1780003847000,-150.0,0.00029,2]
[423266883,1780003847000,-184.28,0.00029,2]
[423266888,1780003847000,-150.0,0.00029,2]
[423266892,1780003847000,-150.0,0.00029,2]
[423266890,1780003847000,-150.0,0.00029,2]
[423266891,1780003847000,-150.0,0.00029,2]
[423266889,1780003847000,-150.0,0.00029,2]
[423266887,1780003847000,-150.0,0.00029,2]
[423266893,1780003847000,-150.0,0.00029,2]
[423266894,1780003847000,-150.0,0.00029,2]
[423266842,1780003847000,-1820.97407399,0.0002888,2]
[423266896,1780003847000,-150.0,0.0002906,3]
[423266895,1780003847000,-7864.35,0.00029,7]
[423266897,1780003847000,-204.7750242,0.00029111,2]
[423266872,1780003847000,-1000.0,0.00029,2]
[423266869,1780003847000,-2000.0,0.00029,2]
[423266898,1780003847000,-104072.78409111,0.00029111,2]
[423266871,1780003847000,-193.0,0.00029,30]
[423266843,1780003847000,-150.0,0.00028897,2]
[423266854,1780003847000,-576.90991943,0.00029,2]
[423266850,1780003847000,-200.0,0.00029,2]
[423266848,1780003847000,-200.0,0.00029,2]
[423266851,1780003847000,-193.8,0.00029,2]
[423266853,1780003847000,-881.28604176,0.00029,2]
[423266846,1780003847000,-500.0,0.00028932,2]
[423266847,1780003847000,-152.0,0.00028966,6]
[423266852,1780003847000,-193.8,0.00029,2]
[423266855,1780003847000,-1730.72975829,0.00029,2]
[423266857,1780003847000,-345.27,0.00029,2]
[423266856,1780003847000,-1588.62056874,0.00029,2]
[423266849,1780003847000,-200.0,0.00029,2]
[423266867,1780003847000,-1000.0,0.00029,2]
[423266859,1780003847000,-1415.99,0.00029,2]
[423266870,1780003847000,-1486.0,0.00029,2]
[423266868,1780003847000,-2000.0,0.00029,2]
[423266860,1780003847000,-1416.0,0.00029,2]
[423266862,1780003847000,-168.33829531,0.00029,2]
[423266866,1780003847000,-1000.0,0.00029,2]
[423266873,1780003847000,-250.0,0.00029,2]
[423266858,1780003847000,-242.0,0.00029,30]
[423266865,1780003847000,-3468.01410193,0.00029,2]
[423266861,1780003847000,-2118.16075832,0.00029,2]
[423266863,1780003847000,-1000.0,0.00029,2]
[423266864,1780003847000,-1000.0,0.00029,2]
[423266900,1780003848000,-1321.86329862,0.00029111,2]
[423266899,1780003848000,-45246.83153198,0.00029111,2]
[423266932,1780003849000,-778.0,0.00029769,30]
[423266943,1780003849000,-352.92536515,0.0002983,7]
[423266944,1780003849000,-341.0316932,0.0002983,7]
[423266933,1780003849000,-281.0,0.00029769,30]
[423266936,1780003849000,-293.0,0.00029769,30]
[423266927,1780003849000,-500.0,0.0002976,2]
[423266929,1780003849000,-465.0,0.00029769,30]
[423266924,1780003849000,-1000.0,0.000297,7]
[423266930,1780003849000,-255.0,0.00029769,30]
[423266926,1780003849000,-732.62240175,0.00029744,2]
[423266948,1780003849000,-415.08076046,0.0002983,7]
[423266934,1780003849000,-234.0,0.00029769,30]
[423266942,1780003849000,-325.54176323,0.0002983,7]
[423266939,1780003849000,-277.0,0.00029769,30]
[423266938,1780003849000,-1000.0,0.00029769,30]
[423266941,1780003849000,-470.75383719,0.0002983,7]
[423266940,1780003849000,-855.51,0.000298,14]
[423266937,1780003849000,-276.0,0.00029769,30]
[423266945,1780003849000,-472.02317307,0.0002983,7]
[423266951,1780003849000,-202.25549447,0.0002983,7]
[423266935,1780003849000,-972.0,0.00029769,30]
[423266923,1780003849000,-804.17102365,0.00029669,2]
[423266918,1780003849000,-1747.87,0.000293,7]
[423266931,1780003849000,-1313.0,0.00029769,30]
[423266953,1780003849000,-376.92642375,0.0002983,7]
[423266902,1780003849000,-239.5748,0.00025082,2]
[423266906,1780003849000,-20822.82989896,0.00029112,2]
[423266901,1780003849000,-323.4252,0.00025082,2]
[423266903,1780003849000,-25979.67,0.00027397,10]
[423266905,1780003849000,-1302.0604078,0.00029111,2]
[423266904,1780003849000,-192250.56127919,0.00029111,2]
[423266907,1780003849000,-233.43054573,0.00029122,2]
[423266913,1780003849000,-525.0,0.00029235,2]
[423266909,1780003849000,-500.0,0.00029144,120]
[423266925,1780003849000,-1373.1,0.00029743,2]
[423266910,1780003849000,-500.0,0.00029224,120]
[423266915,1780003849000,-1225.0,0.00029235,2]
[423266912,1780003849000,-8873.8036755,0.00029225,2]
[423266916,1780003849000,-3549.0,0.00029235,2]
[423266914,1780003849000,-1272.0,0.00029235,2]
[423266911,1780003849000,-292765.0087489,0.00029225,2]
[423266917,1780003849000,-928.0,0.00029235,2]
[423266919,1780003849000,-160.19,0.00029368,120]
[423266921,1780003849000,-1596.0,0.00029543,2]
[423266922,1780003849000,-644.79446245,0.00029669,2]
[423266920,1780003849000,-150.0,0.00029452,30]
[423266908,1780003849000,-200.0,0.00029142,2]
[423266947,1780003849000,-220.52444593,0.0002983,7]
[423266928,1780003849000,-236.0,0.00029769,30]
[423266950,1780003849000,-205.3069553,0.0002983,7]
[423266981,1780003849000,-320.06360848,0.00029852,7]
[423266980,1780003849000,-237.48365593,0.00029852,7]
[423266977,1780003849000,-385.24307706,0.00029837,2]
[423266978,1780003849000,-316.18101806,0.00029852,7]
[423266983,1780003849000,-192.40616548,0.00029852,7]
[423266982,1780003849000,-364.59474956,0.00029852,7]
[423266993,1780003849000,-618.15,0.0003,7]
[423266985,1780003849000,-202.29483362,0.00029852,7]
[423266984,1780003849000,-230.9293827,0.00029852,7]
[423266994,1780003849000,-650.0,0.0003,2]
[423266974,1780003849000,-390.02214377,0.00029831,7]
[423266986,1780003849000,-353.6601143,0.00029852,7]
[423266989,1780003849000,-326.7068599,0.00029925,7]
[423266991,1780003849000,-7000.0,0.0003,3]
[423266990,1780003849000,-22417.81542394,0.0003,5]
[423266992,1780003849000,-2000.0,0.0003,3]
[423266995,1780003849000,-195.91233686,0.0003,30]
[423266996,1780003849000,-13690.10229536,0.0003,2]
[423266997,1780003849000,-87877.0,0.0003,2]
[423266999,1780003849000,-929.683,0.000301,120]
[423266998,1780003849000,-150.0,0.00030004,2]
[423266955,1780003849000,-368.98603073,0.0002983,7]
[423266988,1780003849000,-339.48543397,0.00029925,7]
[423266971,1780003849000,-331.20685036,0.00029831,7]
[423266987,1780003849000,-65568.16931253,0.000299,2]
[423266979,1780003849000,-473.3754662,0.00029852,7]
[423266976,1780003849000,-770.46599286,0.00029833,7]
[423266949,1780003849000,-326.65770675,0.0002983,7]
[423266954,1780003849000,-325.25559529,0.0002983,7]
[423266946,1780003849000,-184.176881,0.0002983,7]
[423266952,1780003849000,-231.2478123,0.0002983,7]
[423266956,1780003849000,-195.28533906,0.0002983,7]
[423266959,1780003849000,-333.59571513,0.00029831,7]
[423266969,1780003849000,-309.11047317,0.00029831,7]
[423266960,1780003849000,-399.66918479,0.00029831,7]
[423266963,1780003849000,-394.55847969,0.00029831,7]
[423266962,1780003849000,-354.57154939,0.00029831,7]
[423266957,1780003849000,-193.6970006,0.0002983,7]
[423266958,1780003849000,-340.22949995,0.0002983,7]
[423266964,1780003849000,-310.00444962,0.00029831,7]
[423266966,1780003849000,-370.74867146,0.00029831,7]
[423266967,1780003849000,-154.94932419,0.00029831,7]
[423266961,1780003849000,-394.27013435,0.00029831,7]
[423266968,1780003849000,-411.39354581,0.00029831,7]
[423266965,1780003849000,-306.65580529,0.00029831,7]
[423266972,1780003849000,-180.46630825,0.00029831,7]
[423266970,1780003849000,-329.14976689,0.00029831,7]
[423266973,1780003849000,-383.31178182,0.00029831,7]
[423266975,1780003849000,-177.1433311,0.00029832,7]
[423267040,1780003850000,-279.77146316,0.00030719,7]
[423267038,1780003850000,-462.49562461,0.00030719,7]
[423267036,1780003850000,-410.61391059,0.00030719,7]
[423267039,1780003850000,-565.38963563,0.00030719,7]
[423267033,1780003850000,-441.04889186,0.00030719,7]
[423267030,1780003850000,-511.5475398,0.00030719,7]
[423267034,1780003850000,-622.62114069,0.00030719,7]
[423267037,1780003850000,-404.51098894,0.00030719,7]
[423267035,1780003850000,-489.98656013,0.00030719,7]
[423267029,1780003850000,-529.38804773,0.00030719,7]
[423267042,1780003850000,-487.88339293,0.00030719,7]
[423267032,1780003850000,-368.35376199,0.00030719,7]
[423267041,1780003850000,-244.95730267,0.00030719,7]
[423267053,1780003850000,-387.3940012,0.00030719,7]
[423267044,1780003850000,-183.55478766,0.00030719,7]
[423267048,1780003850000,-183.59584671,0.00030719,7]
[423267046,1780003850000,-553.4790461,0.00030719,7]
[423267050,1780003850000,-258.50643456,0.00030719,7]
[423267049,1780003850000,-335.44042909,0.00030719,7]
[423267051,1780003850000,-200.21655669,0.00030719,5]
[423267052,1780003850000,-390.57067812,0.00030719,7]
[423267055,1780003850000,-500.39357269,0.00030721,7]
[423267054,1780003850000,-510.34424993,0.00030719,7]
[423267047,1780003850000,-154.3974413,0.00030719,7]
[423267057,1780003850000,-264.11973413,0.00030721,7]